fUST/lending_fUST_20250610
["ID","MTS","AMOUNT","RATE_DAILY","PERIOD"]
[365138116,1749485447226,-2590.19,0.00022739,4]
[365138118,1749485447235,-1789.41,0.00022739,4]
[365138120,1749485447246,-2800.86,0.00022739,4]
[365138122,1749485447256,-888.43,0.00022739,4]
[365138124,1749485447266,-460.0,0.00022739,4]
[365138136,1749485447359,-478.55,0.00022739,4]
[365138138,1749485447382,-460.0,0.00022739,4]
[365138140,1749485447393,-1581.45,0.00022739,4]
[365138142,1749485447403,-460.0,0.00022739,4]
[365138144,1749485447413,-1242.6,0.00022739,4]
[365138146,1749485447423,-501.28,0.00022739,4]
[365138148,1749485447433,-2485.47,0.00022739,4]
[365138150,1749485447442,-460.0,0.00022739,4]
[365138152,1749485447451,-8104.65,0.00022739,4]
[365138154,1749485447465,-2368.21,0.00022739,4]
[365138156,1749485447474,-508.39,0.00022739,4]
[365138158,1749485447484,-1073.21,0.00022739,4]
[365138160,1749485447495,-791.33090228,0.00022831,8]
[365138162,1749485447506,-206.0,0.0002284,2]
[365138164,1749485447516,-500.0,0.0002285,2]
[365138166,1749485447526,-600.0,0.0002285,2]
[365138168,1749485447536,-181.89148489,0.00022859,2]
[365138170,1749485447547,-1319.42,0.00022929,2]
[365138172,1749485447557,-281.31911977,0.00022988,72]
[365138174,1749485447568,-500.0,0.00023,2]
[365138177,1749485447577,-500.0,0.00023,2]
[365138179,1749485447587,-1000.0,0.00023,23]
[365138181,1749485447597,-791.33090228,0.00023003,8]
[365138183,1749485447607,-460.0,0.00023012,4]
[365138185,1749485447617,-460.0,0.00023012,4]
[365138187,1749485447626,-460.0,0.00023012,4]
[365138189,1749485447636,-704.48,0.00023012,4]
[365138191,1749485447646,-511.72,0.00023012,4]
[365138193,1749485447656,-566.01,0.00023012,4]
[365138195,1749485447665,-1155.69,0.00023012,4]
[365138197,1749485447675,-460.0,0.00023012,4]
[365138199,1749485447684,-1796.03,0.00023012,4]
[365138201,1749485447694,-714.82,0.00023012,4]
[365138203,1749485447704,-878.32,0.00023012,4]
[365138205,1749485447714,-485.94,0.00023012,4]
[365138207,1749485447724,-601.22205034,0.00023012,4]
[365138496,1749485603635,273.0,0.00024669,120]
[365138497,1749485639957,150.0,0.0001805,6]
[365138504,1749485791705,200.0,0.00024562,120]
[365138510,1749485830523,-5000.0,0.00020433,2]
[365138511,1749485830548,-403.94036148,0.00020639,2]
[365138512,1749485830574,-170.661557,0.00020745,2]
[365138513,1749485830603,-659.43,0.00021035,2]
[365138514,1749485830624,-460.0,0.00021095,4]
[365138515,1749485830646,-460.0,0.00021095,4]
[365138516,1749485830670,-460.0,0.00021095,4]
[365138517,1749485830694,-460.0,0.00021095,4]
[365138518,1749485830716,-460.0,0.00021095,4]
[365138519,1749485830738,-760.19,0.00021095,4]
[365138520,1749485830762,-596.59,0.00021095,4]
[365138521,1749485830785,-460.0,0.00021095,4]
[365138522,1749485830811,-2351.47,0.00021095,4]
[365138523,1749485830836,-460.0,0.00021095,4]
[365138524,1749485830860,-557.72,0.00021095,4]
[365138525,1749485830884,-460.0,0.00021095,4]
[365138526,1749485830907,-460.0,0.00021095,4]
[365138527,1749485830931,-914.92,0.00021095,4]
[365138528,1749485830956,-565.9,0.00021095,4]
[365138529,1749485830978,-460.0,0.00021095,4]
[365138530,1749485831000,-460.0,0.00021095,4]
[365138531,1749485831023,-460.0,0.00021095,4]
[365138532,1749485831047,-493.94,0.00021095,4]
[365138533,1749485831070,-5.23808152,0.00021095,4]
[365138535,1749485911127,200.0,0.00023549,120]
[365138536,1749485971085,200.0,0.00023913,120]
[365138537,1749486031825,200.0,0.00023672,120]
[365138538,1749486091291,200.0,0.00023434,120]
[365138539,1749486151282,200.0,0.00024472,120]
[365138543,1749486271044,200.0,0.00023687,120]
[365138545,1749486331655,200.0,0.00023546,120]
[365138548,1749486391292,200.0,0.00023364,120]
[365138552,1749486447609,165.600522,0.00013699,2]
[365138553,1749486451353,200.0,0.00024059,120]
[365138655,1749486632712,-269.29357432,0.00018995,2]
[365138657,1749486632722,-220.64443629,0.00019178,3]
[365138659,1749486632734,-165.600522,0.00020951,2]
[365138660,1749486632743,-154.23339184,0.00021035,2]
[365138663,1749486632766,-84.2164084,0.00021035,2]
[365138664,1749486632775,-249.11632495,0.00021094,2]
[365138696,1749486638407,-234.7689302,0.00021094,2]
[365138697,1749486638418,-395.58845462,0.00021094,2]
[365138698,1749486638428,-460.0,0.00021095,4]
[365138699,1749486638437,-440.0,0.00021095,4]
[365138700,1749486638448,-440.0,0.00021095,4]
[365138701,1749486638458,-242.21395231,0.00021095,4]
[365138702,1749486638468,-460.0,0.00021095,2]
[365138703,1749486638478,-460.0,0.00021095,4]
[365138704,1749486638489,-460.0,0.00021095,4]
[365138705,1749486638498,-1834.72,0.00021095,4]
[365138706,1749486638508,-1267.5,0.00021095,4]
[365138707,1749486638517,-1983.94,0.00021095,4]
[365138708,1749486638527,-373.54989965,0.00021095,4]
[365138709,1749486638537,-647.63,0.00021095,4]
[365138710,1749486638546,-460.0,0.00021095,4]
[365138711,1749486638556,-460.0,0.00021095,4]
[365138712,1749486638566,-880.18,0.00021095,4]
[365138713,1749486638576,-1120.19,0.00021095,4]
[365138714,1749486638586,-460.0,0.00021095,4]
[365138715,1749486638595,-460.0,0.00021095,4]
[365138716,1749486638605,-460.0,0.00021095,4]
[365138717,1749486638615,-460.0,0.00021095,4]
[365138718,1749486638624,-1760.54,0.00021095,4]
[365138719,1749486638634,-5776.56,0.00021095,4]
[365138720,1749486638644,-460.0,0.00021095,4]
[365138721,1749486638654,-1695.82,0.00021095,4]
[365138722,1749486638664,-728.51,0.00021095,4]
[365138723,1749486638673,-571.74,0.00021095,4]
[365138724,1749486638683,-460.0,0.00021095,4]
[365138725,1749486638692,-17488.31443142,0.00021095,2]
[365138726,1749486638701,-169.87326127,0.00021267,2]
[365138727,1749486638711,-460.0,0.00021367,4]
[365138728,1749486638720,-231.293,0.00021368,2]
[365138729,1749486638729,-1421.86,0.00021368,4]
[365138730,1749486638740,-499.64802173,0.00021368,4]
[365138731,1749486638750,-452.77383732,0.00021368,4]
[365138732,1749486638759,-420.0,0.00021368,4]
[365138733,1749486638768,-347.75848572,0.00021368,4]
[365138734,1749486638780,-112.24151428,0.00021368,4]
[365138735,1749486638789,-460.0,0.00021368,4]
[365138736,1749486638798,-420.0,0.00021368,4]
[365138737,1749486638808,-94.02525032,0.00021368,4]
[365138738,1749486638820,-782.77474968,0.00021368,4]
[365138739,1749486638829,-31.17829142,0.00021368,4]
[365139345,1749486646659,-1758.27,0.00021095,4]
[365139347,1749486646668,-428.82170858,0.00021368,4]
[365139349,1749486646677,-542.32,0.00021368,4]
[365139351,1749486646687,-695.33,0.00021368,4]
[365139353,1749486646696,-446.66775036,0.00021368,4]
[365139414,1749486751696,200.0,0.0002383,120]
[365139416,1749486871257,200.0,0.00023641,120]
[365139418,1749486931279,200.0,0.00023841,120]
[365139419,1749487051068,200.0,0.00024426,120]
[365139422,1749487545800,165.600522,0.00013699,2]
[365139430,1749487813003,1144.78535701,0.00023425,120]
[365139465,1749487832507,-200.0,0.00018082,3]
[365139467,1749487832518,-170.661557,0.00019334,2]
[365139469,1749487832529,-300.0,0.00019723,2]
[365139471,1749487832539,-81.16897982,0.00019724,2]
[365139473,1749487832550,-855.4,0.00019724,2]
[365139480,1749487832665,-12510.83884548,0.00019724,2]
[365139481,1749487832676,-12512.94259353,0.00020065,2]
[365139482,1749487832686,-24900.0,0.00020077,2]
[365139483,1749487832696,-339.3581818,0.000209,4]
[365139484,1749487832705,-181.89148489,0.00020995,2]
[365139485,1749487832716,-339.3581816,0.00021038,4]
[365139486,1749487832727,-500.0,0.00021073,2]
[365139487,1749487832737,-1901.0374758,0.00021085,2]
[365139488,1749487832747,-382.79,0.00021085,3]
[365139489,1749487832758,-191.39,0.00021085,3]
[365139490,1749487832768,-574.22,0.00021085,3]
[365139491,1749487832779,-500.0,0.00021094,2]
[365139492,1749487832789,-500.0,0.00021094,2]
[365139493,1749487832799,-500.0,0.00021094,2]
[365139494,1749487832809,-500.0,0.00021094,2]
[365139495,1749487832819,-500.0,0.00021094,2]
[365139496,1749487832829,-500.0,0.00021094,2]
[365139497,1749487832839,-500.0,0.00021094,2]
[365139498,1749487832849,-500.0,0.00021094,2]
[365139499,1749487832860,-500.0,0.00021094,2]
[365139500,1749487832869,-500.0,0.00021094,2]
[365139501,1749487832879,-517.97438423,0.00021094,2]
[365139502,1749487832889,-500.0,0.00021094,2]
[365139503,1749487832899,-220.212,0.00021094,2]
[365139504,1749487832909,-300.0,0.00021095,4]
[365139505,1749487832919,-440.0,0.00021095,4]
[365139506,1749487832929,-236.48634865,0.00021095,4]
[365139507,1749487832939,-440.0,0.00021095,4]
[365139508,1749487832949,-159.71134693,0.00021095,4]
[365139509,1749487832960,-430.0,0.00021095,4]
[365139510,1749487832970,-460.0,0.00021095,4]
[365139511,1749487832980,-320.0,0.00021095,4]
[365139512,1749487832990,-440.0,0.00021095,4]
[365139513,1749487833000,-400.96818973,0.00021095,4]
[365139514,1749487833010,-474.75318024,0.00021095,4]
[365139515,1749487833020,-430.0,0.00021095,4]
[365139516,1749487833032,-430.0,0.00021095,4]
[365139517,1749487833043,-430.0,0.00021095,4]
[365139519,1749487833053,-440.0,0.00021095,4]
[365139521,1749487833064,-430.0,0.00021095,4]
[365139523,1749487833074,-440.0,0.00021095,4]
[365139525,1749487833084,-460.0,0.00021095,4]
[365139527,1749487833094,-440.0,0.00021095,4]
[365139529,1749487833104,-460.0,0.00021095,4]
[365139531,1749487833114,-460.0,0.00021095,4]
[365139533,1749487833124,-440.0,0.00021095,4]
[365139535,1749487833139,-460.0,0.00021095,4]
[365139537,1749487833151,-430.0,0.00021095,4]
[365139538,1749487833161,-460.0,0.00021095,4]
[365139540,1749487833172,-460.0,0.00021095,4]
[365139543,1749487833182,-460.0,0.00021095,4]
[365139545,1749487833193,-460.0,0.00021095,4]
[365139547,1749487833203,-430.0,0.00021095,4]
[365139549,1749487833213,-430.0,0.00021095,4]
[365139551,1749487833223,-460.0,0.00021095,4]
[365139553,1749487833234,-200.18887765,0.00021095,4]
[365139555,1749487833244,-426.53492805,0.00021095,2]
[365139557,1749487833257,-406.97986081,0.00021095,4]
[365139559,1749487833267,-440.0,0.00021095,4]
[365139561,1749487833278,-460.0,0.00021095,4]
[365139562,1749487833288,-430.65839878,0.00021095,4]
[365139564,1749487833298,-460.0,0.00021095,4]
[365139567,1749487833309,-460.0,0.00021095,4]
[365139569,1749487833319,-420.0,0.00021095,4]
[365139571,1749487833329,-460.0,0.00021095,4]
[365139573,1749487833341,-430.88754612,0.00021095,4]
[365139575,1749487833351,-440.0,0.00021095,4]
[365139577,1749487833361,-430.0,0.00021095,4]
[365139579,1749487833371,-307.91795095,0.00021095,4]
[365139581,1749487833382,-372.82699897,0.00021095,4]
[365139583,1749487833392,-1362.62,0.00021095,4]
[365139585,1749487833402,-430.0,0.00021095,4]
[365139587,1749487833412,-440.0,0.00021095,4]
[365139589,1749487833422,-280.03668619,0.00021095,4]
[365139591,1749487833433,-440.48977036,0.00021095,4]
[365139593,1749487833443,-430.0,0.00021095,4]
[365139595,1749487833453,-430.0,0.00021095,4]
[365139597,1749487833464,-430.0,0.00021095,4]
[365139599,1749487833474,-243.81934067,0.00021095,4]
[365139601,1749487833484,-430.0,0.00021095,4]
[365139603,1749487833494,-440.0,0.00021095,4]
[365139605,1749487833504,-440.0,0.00021095,4]
[365139607,1749487833514,-430.0,0.00021095,4]
[365139609,1749487833526,-430.0,0.00021095,4]
[365139611,1749487833536,-440.0,0.00021095,4]
[365139613,1749487833547,-430.0,0.00021095,4]
[365139615,1749487833559,-440.0,0.00021095,4]
[365139617,1749487833571,-430.0,0.00021095,4]
[365139619,1749487833582,-440.0,0.00021095,4]
[365139621,1749487833594,-183.62460969,0.00021095,4]
[365139623,1749487833606,-430.0,0.00021095,4]
[365139625,1749487833617,-430.0,0.00021095,4]
[365139627,1749487833628,-430.0,0.00021095,4]
[365139629,1749487833638,-436.58317014,0.00021095,4]
[365139631,1749487833649,-473.36134833,0.00021095,4]
[365139633,1749487833660,-430.0,0.00021095,4]
[365139635,1749487833671,-430.0,0.00021095,4]
[365139637,1749487833682,-440.0,0.00021095,4]
[365139639,1749487833692,-299.70809379,0.00021095,4]
[365139641,1749487833703,-370.02466814,0.00021095,4]
[365139643,1749487833712,-440.0,0.00021095,4]
[365139645,1749487833722,-440.0,0.00021095,4]
[365139647,1749487833733,-500.0,0.00021095,4]
[365139649,1749487833743,-440.0,0.00021095,4]
[365139651,1749487833753,-460.0,0.00021095,4]
[365139653,1749487833764,-473.17,0.00021095,4]
[365139655,1749487833777,-430.0,0.00021095,4]
[365139657,1749487833786,-210.04088016,0.00021095,4]
[365139659,1749487833797,-430.0,0.00021095,4]
[365139661,1749487833807,-440.0,0.00021095,4]
[365139663,1749487833817,-400.0,0.00021095,4]
[365139665,1749487833827,-440.0,0.00021095,4]
[365139667,1749487833837,-430.0,0.00021095,4]
[365139681,1749487833967,-564.22081151,0.00021095,4]
[365139683,1749487833978,-440.0,0.00021095,4]
[365139685,1749487833988,-430.0,0.00021095,4]
[365139687,1749487833998,-410.0,0.00021095,4]
[365139689,1749487834008,-440.0,0.00021095,4]
[365139691,1749487834017,-440.0,0.00021095,4]
[365139692,1749487834028,-440.0,0.00021095,4]
[365139694,1749487834037,-430.0,0.00021095,4]
[365139696,1749487834047,-430.0,0.00021095,4]
[365139698,1749487834057,-430.0,0.00021095,4]
[365139700,1749487834066,-440.0,0.00021095,4]
[365139702,1749487834076,-440.0,0.00021095,4]
[365139704,1749487834086,-440.0,0.00021095,4]
[365139706,1749487834095,-151.0,0.00021095,2]
[365139708,1749487834106,-430.0,0.00021095,4]
[365139710,1749487834116,-430.0,0.00021095,4]
[365139712,1749487834125,-430.0,0.00021095,4]
[365139714,1749487834135,-500.0,0.00021095,4]
[365139716,1749487834146,-430.0,0.00021095,4]
[365139718,1749487834156,-440.0,0.00021095,4]
[365139720,1749487834168,-460.0,0.00021095,2]
[365139722,1749487834179,-440.0,0.00021095,4]
[365139724,1749487834189,-460.0,0.00021095,4]
[365139726,1749487834199,-430.0,0.00021095,4]
[365139728,1749487834209,-440.0,0.00021095,4]
[365139730,1749487834219,-561.83637694,0.00021095,4]
[365139732,1749487834230,-440.0,0.00021095,4]
[365139734,1749487834239,-460.0,0.00021095,4]
[365139736,1749487834249,-432.33149781,0.00021095,4]
[365139738,1749487834263,-440.0,0.00021095,4]
[365139740,1749487834273,-268.07947492,0.00021095,4]
[365139742,1749487834283,-440.0,0.00021095,4]
[365139744,1749487834293,-431.66729141,0.00021095,4]
[365139746,1749487834304,-440.0,0.00021095,4]
[365139748,1749487834313,-440.0,0.00021095,4]
[365139750,1749487834324,-430.0,0.00021095,4]
[365139752,1749487834334,-237.63258079,0.00021095,4]
[365139754,1749487834344,-440.0,0.00021095,4]
[365139756,1749487834355,-460.0,0.00021095,4]
[365139758,1749487834365,-440.0,0.00021095,4]
[365139760,1749487834375,-440.0,0.00021095,4]
[365139762,1749487834385,-440.0,0.00021095,4]
[365139764,1749487834394,-440.0,0.00021095,4]
[365139766,1749487834403,-430.0,0.00021095,4]
[365139768,1749487834413,-430.0,0.00021095,4]
[365139770,1749487834422,-500.0,0.00021095,4]
[365139772,1749487834432,-500.0,0.00021095,4]
[365139774,1749487834442,-500.0,0.00021095,4]
[365139776,1749487834452,-500.0,0.00021095,4]
[365139778,1749487834461,-612.69,0.00021095,4]
[365139780,1749487834470,-460.0,0.00021095,4]
[365139781,1749487834480,-440.0,0.00021095,4]
[365139782,1749487834490,-459.78216244,0.00021095,4]
[365139783,1749487834501,-467.77561153,0.00021095,4]
[365139784,1749487834511,-440.0,0.00021095,4]
[365139785,1749487834521,-460.0,0.00021095,4]
[365139786,1749487834532,-460.0,0.00021095,4]
[365139787,1749487834545,-1000.0,0.00021095,4]
[365139788,1749487834556,-430.0,0.00021095,4]
[365139789,1749487834568,-440.0,0.00021095,4]
[365139790,1749487834578,-440.0,0.00021095,4]
[365139791,1749487834591,-440.0,0.00021095,4]
[365139792,1749487834601,-151.0,0.00021095,2]
[365139793,1749487834610,-151.0,0.00021095,2]
[365139794,1749487834620,-410.0,0.00021095,4]
[365139795,1749487834629,-440.0,0.00021095,4]
[365139796,1749487834639,-583.55902521,0.00021095,4]
[365139797,1749487834649,-430.0,0.00021095,4]
[365139798,1749487834657,-440.0,0.00021095,4]
[365139799,1749487834666,-316.32705389,0.00021095,4]
[365139800,1749487834678,-460.0,0.00021095,4]
[365139802,1749487834688,-440.0,0.00021095,4]
[365139804,1749487834699,-173.17523759,0.00021095,4]
[365139806,1749487834709,-440.0,0.00021095,4]
[365139808,1749487834719,-431.81720152,0.00021095,4]
[365139810,1749487834729,-460.0,0.00021095,4]
[365139812,1749487834738,-440.0,0.00021095,4]
[365139814,1749487834748,-440.0,0.00021095,4]
[365139816,1749487834757,-151.0,0.00021095,2]
[365139818,1749487834766,-153.454868,0.00021095,2]
[365139820,1749487834776,-440.0,0.00021095,4]
[365139822,1749487834786,-440.0,0.00021095,4]
[365139824,1749487834796,-430.0,0.00021095,4]
[365139826,1749487834805,-430.0,0.00021095,4]
[365139828,1749487834816,-430.0,0.00021095,4]
[365139830,1749487834825,-460.0,0.00021095,4]
[365139832,1749487834834,-430.0,0.00021095,4]
[365139834,1749487834844,-430.7358873,0.00021095,4]
[365139836,1749487834853,-430.0,0.00021095,4]
[365139838,1749487834863,-151.0,0.00021095,2]
[365139840,1749487834872,-151.0,0.00021095,2]
[365139842,1749487834882,-436.48722184,0.00021095,4]
[365139844,1749487834892,-440.0,0.00021095,4]
[365139846,1749487834902,-440.0,0.00021095,4]
[365139848,1749487834912,-151.0,0.00021095,2]
[365139850,1749487834922,-151.0,0.00021095,2]
[365139852,1749487834931,-284.78389438,0.00021095,4]
[365139854,1749487834941,-440.0,0.00021095,4]
[365139856,1749487834951,-440.0,0.00021095,4]
[365139858,1749487834960,-440.0,0.00021095,4]
[365139860,1749487834970,-460.0,0.00021095,4]
[365139862,1749487834979,-430.0,0.00021095,4]
[365139864,1749487834988,-151.0,0.00021095,2]
[365139866,1749487834997,-151.0,0.00021095,2]
[365139868,1749487835007,-440.0,0.00021095,4]
[365139870,1749487835016,-440.0,0.00021095,4]
[365139872,1749487835028,-460.0,0.00021095,4]
[365139874,1749487835042,-440.0,0.00021095,4]
[365139877,1749487835057,-430.0,0.00021095,4]
[365139879,1749487835070,-264.057833,0.00021095,2]
[365139882,1749487835082,-440.0,0.00021095,4]
[365139884,1749487835095,-440.0,0.00021095,4]
[365139886,1749487835108,-264.057833,0.00021095,2]
[365139889,1749487835121,-440.0,0.00021095,4]
[365139891,1749487835135,-440.0,0.00021095,4]
[365139894,1749487835149,-264.057833,0.00021095,2]
[365139896,1749487835161,-264.057833,0.00021095,2]
[365139898,1749487835175,-440.0,0.00021095,4]
[365139901,1749487835189,-500.0,0.00021095,4]
[365139903,1749487835202,-501.1582838,0.00021095,4]
[365139905,1749487835214,-440.0,0.00021095,4]
[365139908,1749487835226,-440.0,0.00021095,4]
[365139910,1749487835237,-440.0,0.00021095,4]
[365139912,1749487835249,-440.0,0.00021095,4]
[365139914,1749487835266,-547.91,0.00021095,4]
[365139917,1749487835279,-440.0,0.00021095,4]
[365139919,1749487835292,-400.0,0.00021095,4]
[365139921,1749487835303,-440.0,0.00021095,4]
[365139923,1749487835314,-430.0,0.00021095,4]
[365139925,1749487835326,-460.0,0.00021095,4]
[365139927,1749487835340,-440.0,0.00021095,4]
[365139930,1749487835354,-440.0,0.00021095,4]
[365139932,1749487835368,-440.0,0.00021095,4]
[365139935,1749487835383,-440.0,0.00021095,4]
[365139937,1749487835397,-475.51500222,0.00021095,4]
[365139940,1749487835410,-460.0,0.00021095,4]
[365139942,1749487835424,-225.42819833,0.00021095,4]
[365139945,1749487835436,-460.0,0.00021095,4]
[365139947,1749487835447,-460.0,0.00021095,4]
[365139949,1749487835457,-430.0,0.00021095,4]
[365139951,1749487835469,-430.0,0.00021095,4]
[365139954,1749487835483,-151.0,0.00021095,2]
[365139956,1749487835498,-440.0,0.00021095,4]
[365139959,1749487835511,-151.0,0.00021095,2]
[365139961,1749487835524,-151.0,0.00021095,2]
[365139963,1749487835534,-460.0,0.00021095,4]
[365139965,1749487835546,-440.0,0.00021095,4]
[365139967,1749487835557,-430.0,0.00021095,4]
[365139969,1749487835569,-430.0,0.00021095,4]
[365139971,1749487835580,-440.0,0.00021095,4]
[365139974,1749487835591,-151.0,0.00021095,2]
[365139976,1749487835602,-151.0,0.00021095,2]
[365139978,1749487835613,-440.0,0.00021095,4]
[365139980,1749487835623,-151.0,0.00021095,2]
[365139982,1749487835635,-430.0,0.00021095,4]
[365139984,1749487835646,-440.0,0.00021095,4]
[365139987,1749487835657,-440.0,0.00021095,4]
[365139989,1749487835668,-430.8159445,0.00021095,4]
[365139991,1749487835679,-1685.01,0.00021095,4]
[365139993,1749487835690,-876.93,0.00021095,4]
[365139995,1749487835701,-400.0,0.00021095,4]
[365139997,1749487835712,-460.0,0.00021095,4]
[365140000,1749487835724,-440.0,0.00021095,4]
[365140002,1749487835736,-428.81033719,0.00021095,4]
[365140004,1749487835747,-1288.02,0.00021095,4]
[365140005,1749487835759,-440.0,0.00021095,4]
[365140006,1749487835772,-430.0,0.00021095,4]
[365140007,1749487835785,-552.774134,0.00021095,4]
[365140008,1749487835797,-440.0,0.00021095,4]
[365140009,1749487835810,-440.0,0.00021095,4]
[365140010,1749487835822,-440.0,0.00021095,4]
[365140013,1749487835834,-440.0,0.00021095,4]
[365140015,1749487835846,-430.0,0.00021095,4]
[365140017,1749487835857,-431.00901855,0.00021095,4]
[365140019,1749487835869,-440.0,0.00021095,4]
[365140021,1749487835881,-430.0,0.00021095,4]
[365140024,1749487835893,-151.0,0.00021095,2]
[365140026,1749487835905,-151.731635,0.00021095,2]
[365140028,1749487835915,-430.0,0.00021095,4]
[365140030,1749487835927,-440.0,0.00021095,4]
[365140032,1749487835938,-440.0,0.00021095,4]
[365140035,1749487835950,-440.0,0.00021095,4]
[365140037,1749487835961,-440.0,0.00021095,4]
[365140039,1749487835972,-440.0,0.00021095,4]
[365140041,1749487835983,-420.0,0.00021095,4]
[365140044,1749487835994,-559.37252558,0.00021095,4]
[365140046,1749487836006,-1974.61,0.00021095,4]
[365140048,1749487836016,-440.0,0.00021095,4]
[365140050,1749487836029,-375.87908355,0.00021095,4]
[365140053,1749487836040,-436.98133384,0.00021095,4]
[365140055,1749487836051,-440.0,0.00021095,4]
[365140057,1749487836062,-440.0,0.00021095,4]
[365140059,1749487836074,-416.29435906,0.00021095,4]
[365140061,1749487836085,-440.0,0.00021095,4]
[365140064,1749487836097,-431.91988334,0.00021095,4]
[365140066,1749487836108,-430.0,0.00021095,4]
[365140068,1749487836118,-432.79574424,0.00021095,4]
[365140070,1749487836129,-440.0,0.00021095,4]
[365140072,1749487836140,-440.0,0.00021095,4]
[365140075,1749487836151,-440.0,0.00021095,4]
[365140077,1749487836163,-538.06,0.00021095,4]
[365140079,1749487836174,-416.82876807,0.00021095,4]
[365140081,1749487836186,-347.22070214,0.00021095,4]
[365140084,1749487836198,-440.0,0.00021095,4]
[365140086,1749487836208,-440.0,0.00021095,4]
[365140088,1749487836218,-430.0,0.00021095,4]
[365140105,1749487836367,-465.92042801,0.00021095,4]
[365140107,1749487836382,-440.0,0.00021095,4]
[365140109,1749487836392,-433.60829346,0.00021095,4]
[365140111,1749487836402,-674.59,0.00021095,4]
[365140113,1749487836411,-460.0,0.00021095,4]
[365140115,1749487836421,-534.88135862,0.00021095,4]
[365140118,1749487836431,-440.0,0.00021095,4]
[365140120,1749487836441,-430.0,0.00021095,4]
[365140122,1749487836451,-151.0,0.00021095,2]
[365140124,1749487836460,-432.06933431,0.00021095,4]
[365140126,1749487836470,-151.0,0.00021095,2]
[365140128,1749487836479,-151.0,0.00021095,2]
[365140130,1749487836489,-440.0,0.00021095,4]
[365140132,1749487836499,-430.0,0.00021095,4]
[365140134,1749487836509,-440.0,0.00021095,4]
[365140136,1749487836519,-528.94953731,0.00021095,4]
[365140138,1749487836529,-440.0,0.00021095,4]
[365140140,1749487836538,-430.0,0.00021095,4]
[365140142,1749487836548,-460.0,0.00021095,4]
[365140144,1749487836557,-570.59918432,0.00021095,4]
[365140146,1749487836567,-440.0,0.00021095,4]
[365140148,1749487836576,-503.46434295,0.00021095,4]
[365140150,1749487836586,-666.36,0.00021095,4]
[365140152,1749487836595,-440.0,0.00021095,4]
[365140154,1749487836605,-440.0,0.00021095,4]
[365140156,1749487836614,-430.0,0.00021095,4]
[365140158,1749487836624,-151.0,0.00021095,2]
[365140160,1749487836634,-440.0,0.00021095,4]
[365140162,1749487836644,-417.86177832,0.00021095,4]
[365140164,1749487836654,-430.0,0.00021095,4]
[365140166,1749487836664,-440.0,0.00021095,4]
[365140168,1749487836673,-440.0,0.00021095,4]
[365140170,1749487836683,-431.1115336,0.00021095,4]
[365140172,1749487836693,-440.0,0.00021095,4]
[365140174,1749487836703,-430.0,0.00021095,4]
[365140176,1749487836713,-440.0,0.00021095,4]
[365140178,1749487836722,-440.0,0.00021095,4]